bitfinex/quotes_ETHUSD_20220113
["timestamp","ask_amount","ask_price","bid_price","bid_amount"]
[1642068478916,0.49977754,3372.3,3372.0,0.00397897]
[1642068479120,1.24123754,3372.3,3372.0,0.00397897]
[1642068479317,0.3,3372.2,3372.0,0.00397897]
[1642068479717,0.79977754,3372.2,3372.0,0.00397897]
[1642068479917,0.79977754,3372.2,3372.1,2.55082701]
[1642068480370,0.79977754,3372.2,3372.1,2.55423755]
[1642068481468,0.79977754,3372.2,3372.1,3.29554755]
[1642068481965,0.49977754,3372.2,3372.1,2.55423755]
[1642068482367,0.49977754,3372.2,3372.1,3.94371755]
[1642068482971,0.79977754,3372.2,3372.1,2.67283755]
[1642068485216,0.79977754,3372.2,3372.1,4.74349326]
[1642068485417,0.79977754,3372.2,3372.1,2.67283755]
[1642068485619,0.57514592,3372.2,3372.1,2.67283755]
[1642068485819,0.49977754,3372.2,3372.1,2.67283755]
[1642068486117,0.49977754,3372.2,3372.1,4.6161136]
[1642068486517,0.49977754,3372.2,3372.1,2.67283755]
[1642068487565,0.79977754,3372.2,3372.1,2.67283755]
[1642068488566,0.79977754,3372.2,3372.1,4.49336658]
[1642068488769,0.79977754,3372.2,3372.1,4.49697478]
[1642068489569,0.79977754,3372.2,3372.1,4.61557478]
[1642068489770,0.79977754,3372.2,3372.1,5.61557478]
[1642068490570,0.49977754,3372.2,3372.1,5.61557478]
[1642068490976,0.79977754,3372.2,3372.1,5.61557478]
[1642068491419,0.79977754,3372.2,3372.1,3.67644575]
[1642068493220,0.87402751,3372.2,3372.1,3.67644575]
[1642068494319,0.87402751,3372.2,3372.1,3.68185205]
[1642068494919,0.87402751,3372.2,3372.1,3.56325205]
[1642068497378,0.87402751,3372.2,3372.1,3.56505615]
[1642068498919,0.87402751,3372.2,3372.1,2.56505615]
[1642068505472,0.87402751,3372.2,3372.0,3.0]
[1642068505974,2.35685751,3372.2,3372.0,3.0]
[1642068507417,2.35685751,3372.2,3372.0,3.74135]
[1642068508217,0.14851498,3372.1,3372.0,3.74135]
[1642068508419,0.14851498,3372.1,3372.0,3.0]
[1642068508618,0.14851498,3372.1,3372.0,4.97949499]
[1642068509419,0.14851498,3372.1,3372.0,4.92949499]
[1642068510667,0.14851498,3372.1,3372.0,5.04809499]
[1642068512669,0.14851498,3372.1,3372.0,3.0686]
[1642068512872,0.14851498,3372.1,3372.0,2.95]
[1642068514332,0.14851498,3372.1,3372.0,4.97737403]
[1642068515934,0.14851498,3372.1,3372.0,2.95]
[1642068516133,0.14851498,3372.1,3372.0,3.0686]
[1642068517137,0.14851498,3372.1,3372.0,3.0704041]
[1642068517338,0.14851498,3372.1,3372.0,2.9518041]
[1642068517879,0.14851498,3372.1,3372.0,4.94826396]
[1642068518778,0.14851498,3372.1,3372.0,2.9518041]
[1642068519178,0.14851498,3372.1,3372.0,4.94587202]
[1642068519378,0.07425727,3372.1,3372.0,5.94587202]
[1642068519580,0.07425727,3372.1,3372.0,6.38450767]
[1642068519977,0.7414,3372.3,3372.0,6.50310767]
[1642068520177,0.7414,3372.3,3372.1,1.85973]
[1642068520481,0.02412685,3372.5,3372.2,0.426]
[1642068520676,0.02412685,3372.5,3372.3,0.1186]
[1642068520878,0.02412685,3372.5,3372.4,6.526]
[1642068521080,0.02412685,3372.5,3372.4,7.6446]
[1642068521321,0.49977754,3373.0,3372.5,6.85]
[1642068521519,0.22830727,3373.0,3372.9,6.86298927]
[1642068521719,0.118635,3373.8,3372.9,7.40738927]
[1642068521916,0.118635,3373.8,3373.0,2.39932106]
[1642068522123,0.00682108,3373.7,3373.1,0.426]
[1642068522316,0.00682108,3373.7,3373.2,0.1184]
[1642068522517,0.7409,3373.5,3373.3,1.16697]
[1642068522735,0.7409,3373.5,3373.4,0.1184]
[1642068522919,0.7409,3373.5,3373.4,0.5444]
[1642068523320,0.43843055,3373.5,3373.4,20.23712516]
[1642068523518,2.78907832,3374.5,3373.4,20.53712516]
[1642068523719,2.78907832,3374.5,3373.9,1.4815315]
[1642068523720,2.28922284,3374.5,3373.9,1.4815315]
[1642068523917,2.28922284,3374.5,3374.0,0.426]
[1642068524119,1.48158,3374.3,3374.0,0.426]
[1642068524319,1.48158,3374.3,3374.1,1.11707257]
[1642068524519,0.0096632,3374.2,3374.1,1.54307257]
[1642068524922,0.3096632,3374.2,3374.1,1.54307257]
[1642068525772,0.3096632,3374.2,3374.1,0.426]
[1642068528173,0.0096632,3374.2,3374.1,2.68301902]
[1642068528671,0.0096632,3374.2,3374.1,7.93301902]
[1642068528925,0.0096632,3374.2,3374.1,3.68301902]
[1642068529425,0.0096632,3374.2,3374.1,3.54109923]
[1642068529626,0.3096632,3374.2,3374.1,20.95109923]
[1642068529827,0.0096632,3374.2,3374.1,6.09021627]
[1642068530029,0.0096632,3374.2,3374.1,7.71577704]
[1642068530427,0.0096632,3374.2,3374.1,9.96995704]
[1642068530627,0.0096632,3374.2,3374.1,7.42084]
[1642068531228,0.0096632,3374.2,3374.1,5.28506]
[1642068531627,0.0096632,3374.2,3374.1,4.16666]
[1642068532326,0.0096632,3374.2,3374.1,5.66412505]
[1642068532577,0.3096632,3374.2,3374.1,4.16666]
[1642068532964,0.0096632,3374.2,3374.1,4.16666]
[1642068533164,0.0096632,3374.2,3374.1,5.16666]
[1642068533565,0.0096632,3374.2,3374.1,8.50823607]
[1642068534968,0.0096632,3374.2,3374.1,8.62663607]
[1642068535170,0.0096632,3374.2,3374.1,7.32148836]
[1642068535468,0.0096632,3374.2,3374.1,24.73148836]
[1642068535669,0.65131127,3375.9,3374.7,0.74064]
[1642068535870,0.65131127,3375.9,3374.2,6.85]
[1642068535871,0.65131127,3375.9,3375.1,0.01247091]
[1642068536068,0.65131127,3375.9,3375.2,0.5444]
[1642068536316,0.65131127,3375.9,3375.2,0.426]
[1642068536516,1.4811,3375.6,3375.5,1.40514746]
[1642068536918,1.48905793,3375.6,3375.5,1.40514746]
[1642068537120,1.78905793,3375.6,3375.2,0.426]
[1642068537320,0.3,3375.5,3375.3,0.74058]
[1642068537518,1.04055,3375.4,3375.3,0.74058]
[1642068537721,0.00682108,3375.4,3375.2,0.426]
[1642068537917,0.00682108,3375.4,3375.3,2.00788267]
[1642068538119,1.0063701,3376.0,3375.3,2.00788267]
[1642068538322,1.3063701,3376.0,3375.6,0.7405]
[1642068538518,0.74048,3375.8,3375.7,1.20344913]
[1642068538920,0.74957477,3375.8,3375.3,1.7405114]
[1642068539219,0.00852635,3375.7,3375.4,2.3973204]
[1642068539418,0.00852635,3375.7,3375.4,19.8073204]
[1642068539620,0.00795793,3375.6,3375.5,5.2998929]
[1642068539821,0.00795793,3375.6,3375.5,5.7069]
[1642068540070,0.00795793,3375.6,3375.5,6.10194635]
[1642068540464,0.00795793,3375.6,3375.5,7.12913742]
[1642068540965,0.74842793,3375.6,3375.5,3.426]
[1642068541366,1.04842793,3375.6,3375.5,3.426]
[1642068541965,1.04842793,3375.6,3375.5,4.53936198]
[1642068542165,1.04842793,3375.6,3375.5,3.426]
[1642068545018,3.30258271,3375.6,3375.5,3.0]
[1642068545219,3.30258271,3375.6,3375.5,2.95]
[1642068545220,6.90258271,3375.6,3375.5,2.95]
[1642068545423,5.01692793,3375.6,3375.5,2.95]
[1642068545820,1.41692793,3375.6,3375.0,1.53652249]
[1642068546019,0.3,3375.5,3375.0,1.53652249]
[1642068546219,0.7407,3375.4,3375.0,1.53652249]
[1642068546422,0.74752108,3375.4,3374.5,0.1184]
[1642068546621,1.28484657,3375.3,3374.5,0.1184]
[1642068546821,1.58484657,3375.3,3374.4,0.25]
[1642068547121,0.00568423,3375.2,3374.4,0.25]
[1642068547321,0.74072,3375.0,3374.4,0.25]
[1642068547870,1.52207554,3374.5,3374.4,0.25]
[1642068548071,1.52207554,3374.5,3373.7,0.1184]
[1642068548272,1.82378081,3374.5,3373.7,0.1184]
[1642068548470,0.50099611,3374.4,3373.8,0.0022737]
[1642068548670,0.50099611,3374.4,3373.9,1.4319891]
[1642068548871,0.74095,3374.3,3373.9,1.4319891]
[1642068549072,0.3,3374.2,3374.0,0.00113685]
[1642068549573,0.74099,3374.1,3374.0,0.00113685]
[1642068551318,0.74099,3374.1,3374.0,0.00474505]
[1642068551518,0.74099,3374.1,3374.0,3.00474505]
[1642068553618,0.74099,3374.1,3374.0,2.90474505]
[1642068557270,0.74099,3374.1,3374.0,3.02314505]
[1642068557471,0.74099,3374.1,3374.0,2.90474505]
[1642068558272,1.04099,3374.1,3374.0,2.40488579]
[1642068558822,1.04099,3374.1,3374.0,8.579e-05]
[1642068558823,8.93709,3374.1,3374.0,8.579e-05]
[1642068559021,5.79979561,3374.0,3373.4,0.0018041]
[1642068559220,0.74121,3373.8,3373.5,0.00292791]
[1642068559619,1.78243,3373.8,3372.9,0.00625266]
[1642068559823,0.74124,3373.6,3372.9,0.00625266]
[1642068560022,0.6,3373.8,3372.9,0.00625266]
[1642068560221,0.6,3373.8,3372.8,0.00682108]
[1642068560423,0.3,3373.8,3372.9,2.55005631]
[1642068560624,1.34282605,3373.7,3372.9,2.55005631]
[1642068560824,1.39840915,3373.1,3373.0,0.00568423]
[1642068561227,1.39840915,3373.1,3372.9,2.55005631]
[1642068561424,1.69840915,3373.1,3372.9,2.55005631]
[1642068561825,1.99840915,3373.1,3372.9,2.55005631]
[1642068562031,1.99840915,3373.1,3372.6,3.0]
[1642068562032,1.99840915,3373.1,3372.8,2.55005631]
[1642068562326,2.73971915,3373.1,3372.8,2.55005631]
[1642068562967,2.73971915,3373.1,3372.6,3.0]
[1642068563168,3.48100915,3373.1,3372.6,3.0]
[1642068563371,3.48100915,3373.1,3372.8,1.25092474]
[1642068563569,3.48100915,3373.1,3372.7,0.00170527]
[1642068564372,2.22394,3373.0,3372.7,0.00170527]
[1642068564572,0.3,3372.9,3372.7,0.00170527]
[1642068564774,0.3,3372.9,3372.7,2.55204234]
[1642068565177,0.3,3372.9,3372.8,0.00113685]
[1642068570569,0.6,3372.9,3372.8,0.00113685]
[1642068570770,0.3,3372.9,3372.6,3.0]
[1642068570970,1.48273,3372.8,3372.6,3.0]
[1642068571570,1.78273,3372.8,3372.6,3.0]
[1642068573473,1.78273,3372.8,3372.4,0.0018041]
[1642068573474,2.30986933,3372.7,3372.4,0.0018041]
[1642068573675,0.74139,3372.6,3372.4,0.0018041]
[1642068573916,0.74139,3372.6,3372.5,0.00170527]
[1642068574118,1.04139,3372.6,3372.5,0.00170527]
[1642068574316,3.31657067,3372.6,3372.5,0.00170527]
[1642068574717,1.04139,3372.6,3372.5,0.00170527]
[1642068576323,1.29109,3372.6,3372.5,0.00170527]
[1642068577121,1.29109,3372.6,3372.5,0.0018041]
[1642068577584,1.04139,3372.6,3372.5,0.0018041]
[1642068577770,4.19139,3372.6,3372.4,0.0018041]
[1642068577971,0.74147,3372.5,3372.4,0.0018041]
[1642068578172,4.93629145,3372.5,3372.4,0.0018041]
[1642068578373,3.1,3372.4,3371.7,0.1186]
[1642068578672,1.0440946,3372.1,3371.8,0.00397896]
[1642068579075,1.3440946,3372.1,3371.7,0.00454739]
[1642068579273,1.4646966,3372.0,3371.7,0.00454739]
[1642068579475,2.3588966,3372.0,3371.7,0.00454739]
[1642068580273,0.74161,3371.9,3371.7,0.00454739]
[1642068580673,1.7831962,3371.9,3371.7,0.00454739]
[1642068581078,2.5246862,3371.9,3371.7,0.00454739]
[1642068581321,0.00432955,3371.8,3371.6,0.1186]
[1642068581526,0.00432955,3371.8,3371.6,0.0425]
[1642068581721,4.9,3371.8,3370.6,0.1186]
[1642068581923,0.7417368,3371.3,3370.6,0.1186]
[1642068582120,0.74173,3371.1,3370.7,0.00568423]
[1642068582336,0.74173,3371.1,3370.9,0.01210768]
[1642068582521,1.1888,3372.1,3371.4,1.14826267]
[1642068582722,1.1888,3372.1,3370.9,0.01210768]
[1642068582723,2.96671,3372.2,3371.0,0.12257896]
[1642068582921,2.96671,3372.2,3371.5,0.00113684]
[1642068582922,0.00170527,3372.0,3371.5,0.00113684]
[1642068583121,0.00170527,3372.0,3371.0,0.1186]
[1642068583122,0.00170527,3372.0,3371.1,0.00341054]
[1642068583328,0.74154,3371.7,3371.3,0.01784123]
[1642068583625,1.6100033,3372.1,3371.2,0.1186]
[1642068583626,1.3100033,3372.1,3371.4,0.12030527]
[1642068583822,1.3100033,3372.1,3371.4,0.00170527]
[1642068584025,1.3100033,3372.1,3371.5,0.00113684]
[1642068584323,1.3100033,3372.1,3371.3,2.40757634]
[1642068584324,0.7414,3371.9,3371.4,0.00170527]
[1642068585573,0.3,3371.8,3371.4,1.25468728]
[1642068585872,0.7415,3371.7,3371.5,0.00113684]
[1642068587374,0.7415,3371.7,3371.4,0.00170527]
[1642068587575,0.7415,3371.7,3371.5,0.1186]
[1642068587775,0.7415,3371.7,3371.1,0.12201054]
[1642068587975,0.7415,3371.7,3371.3,1.11101778]
[1642068588177,0.7415,3371.7,3371.4,0.1186]
[1642068588375,0.7415,3371.7,3371.4,0.12030527]
[1642068588579,0.7415,3371.7,3371.5,0.00113684]
[1642068589822,0.7415,3371.7,3371.6,0.1186]
[1642068590621,0.7415,3371.7,3371.5,2.50213591]
[1642068591023,1.0415,3371.7,3371.5,0.00113684]
[1642068592125,1.0415,3371.7,3371.5,2.42507639]
[1642068592126,1.24140561,3371.6,3371.5,2.42507639]
[1642068592322,0.61839561,3371.6,3371.5,2.42507639]
[1642068592583,0.61839561,3371.6,3371.5,2.42621323]
[1642068592975,6.23509561,3371.6,3371.5,2.42621323]
[1642068593375,6.23509561,3371.6,3371.5,0.00113684]
[1642068593575,5.7353,3371.6,3371.5,0.00113684]
[1642068593775,0.7416782,3371.4,3371.1,0.00341054]
[1642068593976,1.27488252,3371.2,3371.1,0.00341054]
[1642068594175,1.69348252,3371.2,3371.1,0.00341054]
[1642068594978,1.69348252,3371.2,3371.0,0.00397896]
[1642068596177,1.69348252,3371.2,3370.7,3.9746]
[1642068596178,0.00558019,3371.1,3370.8,0.00511581]
[1642068596418,0.74168,3371.0,3370.8,0.00511581]
[1642068597220,0.74168,3371.0,3370.6,0.00625266]
[1642068597418,0.74168,3371.0,3370.5,0.00682108]
[1642068597817,0.74168,3370.9,3370.5,0.00682108]
[1642068598220,1.48338,3370.9,3370.5,0.00682108]
[1642068598521,4.04794233,3370.9,3370.5,0.00682108]
[1642068599122,0.1186,3370.8,3370.5,0.00682108]
[1642068599319,1.60209,3370.8,3370.5,0.00682108]
[1642068599518,0.3,3370.7,3370.4,0.0073895]
[1642068599722,0.74173,3370.7,3370.5,0.1186]
[1642068600073,0.74173,3370.7,3370.6,0.00625266]
[1642068600467,1.48349,3370.8,3370.6,0.00625266]
[1642068600765,1.48349,3370.8,3370.5,0.00682108]
[1642068600766,2.22527,3370.8,3370.5,0.00682108]
[1642068600966,2.52527,3370.8,3370.5,0.00682108]
[1642068601165,2.42527,3370.8,3370.4,0.0073895]
[1642068601766,1.11743073,3370.7,3370.4,0.0073895]
[1642068602566,2.60095073,3370.7,3370.4,0.0073895]
[1642068603366,1.67962173,3370.6,3370.4,0.0073895]
[1642068603566,1.37929991,3370.5,3370.4,0.0073895]
[1642068603824,0.3,3370.6,3370.4,0.0073895]
[1642068604028,0.74182,3370.4,3370.2,0.00852635]
[1642068604526,1.04182,3370.4,3370.2,0.00852635]
[1642068604726,1.04182,3370.4,3370.1,0.00909477]
[1642068604929,2.8209844,3370.4,3370.1,0.00909477]
[1642068605925,0.01081448,3370.3,3370.0,0.0096632]
[1642068606129,1.90992678,3370.1,3370.0,0.0096632]
[1642068606529,2.20992678,3370.1,3369.9,0.01023162]
[1642068606929,2.20992678,3370.1,3369.6,0.1186]
[1642068606930,2.95184678,3370.1,3369.8,0.01080004]
[1642068607130,2.95184678,3370.1,3369.7,0.01136847]
[1642068607131,0.74191,3370.0,3369.7,0.01136847]
[1642068607331,1.24170561,3370.0,3369.7,0.01136847]
[1642068608782,1.24170561,3370.0,3369.6,0.01193689]
[1642068608985,1.24170561,3370.0,3369.5,3.95223689]
[1642068609183,1.04192,3369.9,3369.5,3.95223689]
[1642068609384,0.74195,3369.8,3369.5,3.95223689]
[1642068609583,0.74308685,3369.8,3369.5,3.95223689]
[1642068609783,0.3,3369.7,3369.5,0.1186]
[1642068609984,0.3,3369.7,3369.4,1.51449712]
[1642068609985,0.38119561,3369.5,3369.4,1.51449712]
[1642068610187,0.38119561,3369.5,3369.3,7.67449712]
[1642068610385,0.74201,3369.6,3369.4,0.00113685]
[1642068610985,0.74201,3369.6,3369.4,1.43669909]
[1642068611426,0.74201,3369.6,3369.4,0.00113685]
[1642068612729,1.5369146,3369.5,3369.4,0.00113685]
[1642068613732,3.90650606,3369.5,3369.4,2.29234434]
[1642068613928,3.90650606,3369.5,3369.1,1.51449712]
[1642068613929,5.29214754,3369.4,3369.1,1.51449712]
[1642068614127,2.49130009,3369.3,3369.1,1.51449712]
[1642068614332,0.1187,3369.2,3369.1,1.51449712]
[1642068614727,0.1187,3369.2,3369.1,1.51620239]
[1642068614927,0.1187,3369.2,3369.1,0.00170527]
[1642068615488,0.01337501,3369.0,3368.7,0.00397896]
[1642068615686,0.1187,3368.9,3368.7,0.00397896]
[1642068615883,0.1187,3368.9,3368.5,0.00511581]
[1642068616085,0.4187,3368.9,3368.5,0.00511581]
[1642068616284,0.49999258,3368.8,3368.5,0.00511581]
[1642068616885,1.35122345,3368.7,3368.4,0.00568423]
[1642068617286,0.00340599,3368.6,3368.4,0.00568423]
[1642068617489,4.33579944,3368.7,3368.4,0.00568423]
[1642068617687,2.09345345,3368.7,3368.4,0.00568423]
[1642068617886,1.35122345,3368.7,3368.4,0.00568423]
[1642068618301,0.49999258,3368.8,3368.5,0.03365116]
[1642068618487,0.1187,3369.4,3368.5,0.1187]
[1642068618686,1.1703,3369.6,3368.6,0.00454739]
[1642068618687,0.1187,3369.5,3368.6,0.00454739]
[1642068618928,1.289,3369.6,3368.6,0.00454739]
[1642068619127,0.1187,3369.2,3368.6,0.00454739]
[1642068619427,1.47853597,3369.1,3368.4,0.00568423]
[1642068619829,0.74206,3369.0,3368.4,0.00568423]
[1642068620029,0.3,3368.8,3368.4,0.00568423]
[1642068621231,0.74213,3368.7,3368.4,0.00568423]
[1642068621432,1.39422031,3368.6,3368.4,0.00568423]
[1642068621633,1.39422031,3368.6,3368.3,0.00625266]
[1642068621833,1.39422031,3368.6,3368.1,0.0073895]
[1642068621834,1.51292031,3368.6,3368.1,0.0073895]
[1642068622034,1.39422031,3368.6,3368.1,0.0073895]
[1642068622433,0.74225,3368.5,3368.1,0.0073895]
[1642068622878,0.74225,3368.5,3368.1,1.34924926]
[1642068623281,0.74225,3368.5,3368.2,0.00682108]
[1642068623978,1.39422031,3368.6,3368.2,0.00682108]
[1642068624381,1.39422031,3368.6,3368.1,0.0073895]
[1642068625486,2.13638031,3368.6,3368.1,0.0073895]
[1642068626726,0.74224,3368.4,3368.1,0.0073895]
[1642068626926,1.48453,3368.4,3368.1,0.0073895]
[1642068627128,0.3,3368.3,3368.1,0.0073895]
[1642068627534,0.3,3368.3,3367.9,3.7428]
[1642068627535,0.3,3368.3,3368.0,0.00795793]
[1642068627729,0.4187,3368.3,3368.0,0.00795793]
[1642068627928,1.16101,3368.3,3368.0,0.00795793]
[1642068628128,0.00651892,3368.2,3368.0,0.00795793]
[1642068628335,0.1187,3368.2,3368.0,0.00795793]
[1642068629528,2.94566,3368.3,3368.0,0.00795793]
[1642068629729,0.49999258,3368.1,3368.0,0.00795793]
[1642068630573,0.49999258,3368.1,3367.9,0.00852635]
[1642068630773,0.49999258,3368.1,3367.8,6.12401402]
[1642068630975,1.43202653,3368.0,3367.5,0.1187]
[1642068631376,1.13202653,3368.0,3367.6,0.00170527]
[1642068631675,1.13202653,3368.0,3367.7,0.1187]
[1642068631875,0.49999258,3368.1,3367.7,0.1187]
[1642068632076,0.49999258,3368.1,3368.0,7.89629215]
[1642068632276,0.49999258,3368.1,3368.0,8.01499215]
[1642068632483,0.00113685,3368.1,3368.0,8.01499215]
[1642068632683,0.00113685,3368.1,3368.0,9.01499215]
[1642068633579,0.49999258,3369.1,3368.1,6.8]
[1642068633853,0.49999258,3369.1,3368.6,0.74194]
[1642068634048,0.00454739,3368.9,3368.7,0.1187]
[1642068634450,0.00397896,3368.8,3368.7,4.1187]
[1642068634649,0.00397896,3368.8,3368.7,5.58732215]
[1642068635249,0.00397896,3368.8,3368.7,7.84270397]
[1642068635451,0.00397896,3368.8,3368.7,5.58732215]
[1642068635650,0.00397896,3368.8,3368.7,8.00974778]
[1642068635852,0.00397896,3368.8,3368.7,9.92389709]
[1642068636852,0.00397896,3368.8,3368.7,9.56326408]
[1642068637052,0.00397896,3368.8,3368.7,9.44456408]
[1642068639622,0.00397896,3368.8,3368.7,10.44456408]
[1642068640424,0.30397896,3368.8,3368.7,9.44456408]
[1642068641845,0.30397896,3368.8,3368.7,7.38277146]
[1642068642045,0.00397896,3368.8,3368.7,8.38277146]
[1642068643047,0.00397896,3368.8,3368.7,9.61087146]
[1642068643247,0.00397896,3368.8,3368.7,8.38277146]
[1642068643954,0.00397896,3368.8,3368.7,7.38277146]
[1642068644548,0.30397896,3368.8,3368.7,7.38277146]
[1642068646214,0.30397896,3368.8,3368.7,1.91414931]
[1642068646817,0.00397896,3368.8,3368.7,1.91414931]
[1642068647014,0.30397896,3368.8,3368.7,1.91414931]
[1642068647415,0.30397896,3368.8,3368.7,5.56414931]
[1642068648015,0.30397896,3368.8,3368.7,1.91414931]
[1642068649238,0.80397154,3368.8,3368.7,1.91414931]
[1642068650141,0.80397154,3368.8,3368.5,1.91414931]
[1642068650340,1.48412,3368.7,3368.5,1.91414931]
[1642068650539,0.3,3368.6,3368.5,1.91414931]
[1642068650741,0.30284211,3368.6,3368.5,1.91414931]
[1642068651340,0.30284211,3368.6,3368.5,5.26414931]
[1642068651941,0.00284211,3368.6,3368.5,5.26414931]
[1642068652138,0.30284211,3368.6,3368.5,5.26414931]
[1642068652985,0.30284211,3368.6,3368.5,8.06414931]
[1642068653588,0.28617211,3368.6,3368.5,8.06414931]
[1642068655590,0.28617211,3368.6,3368.5,4.71414931]
[1642068655793,0.28617211,3368.6,3368.5,6.2221071]
[1642068658441,0.28617211,3368.6,3368.5,4.71414931]
[1642068659541,0.28617211,3368.6,3368.5,6.23187658]
[1642068664241,0.00284211,3368.6,3368.5,6.23187658]
[1642068664440,0.30284211,3368.6,3368.5,6.23187658]
[1642068664643,0.30284211,3368.6,3368.5,0.29384658]
[1642068665140,0.30284211,3368.6,3368.3,2.43748428]
[1642068665341,1.24226258,3368.5,3368.3,2.43748428]
[1642068665542,1.83472274,3368.4,3368.3,2.43748428]
[1642068665743,1.83642801,3368.4,3368.3,2.43748428]
[1642068665942,1.83642801,3368.4,3368.2,2.27174568]
[1642068666143,1.83642801,3368.4,3368.0,0.1187]
[1642068666144,3.32099801,3368.4,3368.0,0.1187]
[1642068666442,0.00113684,3368.3,3368.0,0.1187]
[1642068667244,1.48571684,3368.3,3368.0,0.1187]
[1642068667689,0.00453639,3368.2,3368.0,0.1187]
[1642068667988,1.48571684,3368.3,3367.9,1.46304635]
[1642068668387,0.00624648,3368.2,3367.8,2.27174568]
[1642068668587,0.74227,3368.2,3367.8,2.27174568]
[1642068668787,0.74229,3368.0,3367.9,2.27288253]
[1642068669590,1.04229,3368.0,3367.9,0.00113685]
[1642068669993,1.04229,3368.0,3367.8,0.74391527]
[1642068670192,0.3,3367.9,3367.8,0.74391527]
[1642068670992,0.3,3367.9,3367.8,3.01566095]
[1642068671835,1.48451,3368.0,3367.8,0.74391527]
[1642068672236,1.48451,3368.0,3367.8,0.00170527]
[1642068673136,0.3,3367.9,3367.8,0.00170527]
[1642068673940,0.3,3367.9,3367.8,0.51244541]
[1642068674544,1.0953,3367.9,3367.8,0.51244541]
[1642068674837,1.0953,3367.9,3367.7,2.27174568]
[1642068675084,0.74252,3367.7,3367.4,2.43748428]
[1642068675285,1.04252,3367.7,3367.4,2.43748428]
[1642068675483,0.7425299,3367.6,3367.4,2.43748428]
[1642068675687,1.26502,3367.7,3367.4,2.43748428]
[1642068676284,0.7425,3367.6,3367.4,2.43748428]
[1642068676583,0.7425,3367.6,3367.4,1.45796292]
[1642068678085,0.7425,3367.6,3367.5,0.1187]
[1642068679935,0.7425,3367.6,3367.5,1.63619879]
[1642068680836,0.7425,3367.6,3367.5,4.43619879]
[1642068681236,0.7425,3367.6,3367.5,1.63619879]
[1642068682443,0.7425,3367.6,3367.5,1.51749879]
[1642068682688,1.0425,3367.6,3367.5,1.51749879]
[1642068683684,1.0425,3367.6,3367.5,1.17519467]
[1642068684487,1.78484,3367.6,3367.3,0.74233]
[1642068685388,1.78484,3367.6,3367.4,1.33362961]
[1642068685592,1.78484,3367.6,3367.4,2.72295191]
[1642068685992,1.48484,3367.6,3367.4,2.72295191]
[1642068686642,1.48484,3367.6,3367.5,1.3893223]
[1642068687742,1.78484,3367.6,3367.5,1.4893223]
[1642068691591,0.31090288,3367.5,3367.2,1.51749879]
[1642068691789,1.78492,3367.5,3367.2,1.51749879]
[1642068691988,1.78492,3367.5,3367.3,0.00113685]
[1642068693094,1.78492,3367.5,3367.2,0.00170527]
[1642068693489,3.0279559,3367.5,3367.2,0.00170527]
[1642068694141,3.0279559,3367.5,3367.2,1.51920406]
[1642068695341,3.0279559,3367.5,3367.3,0.51086393]
[1642068697344,1.78492,3367.5,3367.3,0.51086393]
[1642068698185,1.78492,3367.5,3367.2,1.51920406]
[1642068699586,0.00789716,3367.4,3367.2,1.51920406]
[1642068700188,1.78492,3367.5,3367.2,2.26156406]
[1642068700488,1.48492,3367.5,3367.2,2.26156406]
[1642068700688,0.74246,3367.5,3367.3,2.10295361]
[1642068700889,0.7425,3367.6,3367.4,0.1187]
[1642068701365,0.7425,3367.6,3367.4,1.6031526]
[1642068702343,0.74224,3367.7,3367.5,1.53625112]
[1642068702544,0.74224,3367.7,3367.5,3.05374991]
[1642068702746,1.04224,3367.7,3367.5,4.53816311]
[1642068703648,1.04224,3367.7,3367.6,1.51749879]
[1642068703847,0.74224,3367.7,3367.6,1.51749879]
[1642068704046,0.74337684,3367.7,3367.6,1.51749879]
[1642068704647,0.74337684,3367.7,3367.6,6.61749879]
[1642068705097,0.74337684,3367.7,3367.6,6.73619879]
[1642068705299,0.74337684,3367.7,3367.6,5.2187]
[1642068705501,0.74337684,3367.7,3367.6,5.21555]
[1642068706304,0.71335684,3367.7,3367.6,5.21555]
[1642068706704,0.71335684,3367.7,3367.6,6.91555]
[1642068706902,0.71335684,3367.7,3367.6,6.79685]
[1642068707503,0.71335684,3367.7,3367.6,5.09685]
[1642068710941,1.01335684,3367.7,3367.6,7.37282526]
[1642068711241,0.30024631,3367.7,3367.6,7.37282526]
[1642068712041,0.30024631,3367.7,3367.6,8.63337288]
[1642068716350,0.30024631,3367.7,3367.6,9.14418548]
[1642068716646,0.30024631,3367.7,3367.6,4.04733548]
[1642068716842,0.30024631,3367.7,3367.6,1.77136022]
[1642068717643,0.30024631,3367.7,3367.6,1.26054762]
[1642068718746,0.30024631,3367.7,3367.6,4.66054762]
[1642068720594,0.30024631,3367.7,3367.6,7.81054762]
[1642068721198,0.30024631,3367.7,3367.6,8.81054762]
[1642068721394,0.30024631,3367.7,3367.6,9.32138553]
[1642068722398,0.30024631,3367.7,3367.6,6.29008553]
[1642068722796,0.30024631,3367.7,3367.6,5.77924762]
[1642068723600,0.30024631,3367.7,3367.6,8.52924762]
[1642068723854,0.30024631,3367.7,3367.6,5.77924762]
[1642068725445,0.30024631,3367.7,3367.6,9.17924762]
[1642068725648,1.94040407,3369.2,3367.7,6.8]
[1642068725848,0.49999258,3369.0,3368.2,0.74201]
[1642068726048,0.49999258,3369.0,3368.4,17.41]
[1642068726248,0.74191,3368.8,3368.5,1.83285626]
[1642068726448,0.74191,3368.8,3368.6,7.95971486]
[1642068726746,0.12438424,3368.7,3368.6,8.38571486]
[1642068726949,0.12438424,3368.7,3368.6,9.38571486]
[1642068728793,0.12438424,3368.7,3368.6,8.38571486]
[1642068728992,0.11884627,3368.7,3368.6,12.89978915]
[1642068729391,0.11884627,3368.7,3368.6,13.01848915]
[1642068729994,0.11884627,3368.7,3368.6,10.76496248]
[1642068730995,0.11884627,3368.7,3368.6,9.60524762]
[1642068732647,0.11884627,3368.7,3368.6,9.48654762]
[1642068733047,0.11884627,3368.7,3368.6,10.94245444]
[1642068735692,2.05910407,3370.3,3369.5,0.7418]
[1642068735894,2.05910407,3370.3,3369.6,0.426]
[1642068736091,2.05910407,3370.3,3369.4,19.92999]
[1642068736092,3.46643201,3370.3,3369.7,0.426]
[1642068736292,3.46643201,3370.3,3370.1,1.1746396]
[1642068736492,0.74164,3370.2,3370.1,1.1746396]
[1642068736692,3.46643201,3370.3,3370.1,1.6006396]
[1642068737093,3.46643201,3370.3,3370.2,4.84162]
[1642068737291,3.46643201,3370.3,3370.2,5.26762]
[1642068737496,0.00909477,3370.3,3370.2,5.26762]
[1642068737891,0.74161,3370.4,3370.3,3.55]
[1642068738092,1.43826468,3370.5,3370.3,5.54854866]